fUST/lending_fUST_20240612
["ID","MTS","AMOUNT","RATE_DAILY","PERIOD"]
[329188448,1718165453853,-516.61665246,0.00017649,2]
[329188450,1718165453864,-500.3036093,0.00017649,2]
[329188452,1718165453874,-191.074939,0.0001765,2]
[329188454,1718165453885,-191.074939,0.0001765,2]
[329188456,1718165453896,-151.0,0.0001765,2]
[329188458,1718165453907,-151.0,0.0001765,2]
[329188460,1718165453917,-287.152851,0.0001765,2]
[329188462,1718165453928,-287.152852,0.0001765,2]
[329188464,1718165453938,-787.28,0.0001765,2]
[329188477,1718165454054,-870.17,0.0001765,2]
[329188479,1718165454089,-500.0,0.0001765,2]
[329188481,1718165454102,-500.0,0.0001765,2]
[329188483,1718165454114,-500.0,0.0001765,2]
[329188485,1718165454128,-158.691533,0.0001765,2]
[329188487,1718165454140,-3451.2,0.0001765,2]
[329188489,1718165454168,-158.691538,0.0001765,2]
[329188492,1718165454202,-2069.11,0.0001765,2]
[329188494,1718165454214,-2246.162591,0.0001765,2]
[329188496,1718165454226,-2246.162584,0.0001765,2]
[329188498,1718165454238,-556.80278431,0.0001765,2]
[329188500,1718165454248,-500.0,0.0001765,2]
[329188502,1718165454259,-500.0,0.0001765,2]
[329188504,1718165454270,-500.0,0.0001765,2]
[329188506,1718165454283,-6279.89,0.0001765,2]
[329188508,1718165454294,-500.0,0.0001765,2]
[329188510,1718165454305,-500.0,0.0001765,2]
[329188512,1718165454316,-500.0,0.0001765,2]
[329188514,1718165454327,-3076.15955739,0.00017651,2]
[329188516,1718165454337,-3658.77296858,0.00017746,2]
[329188518,1718165454347,-151.0,0.0001775,2]
[329188520,1718165454358,-213.680644,0.0001775,2]
[329188522,1718165454368,-213.680644,0.0001775,2]
[329188524,1718165454379,-183.395568,0.0001775,2]
[329188526,1718165454389,-183.395568,0.0001775,2]
[329188528,1718165454403,-3233.555332,0.0001775,2]
[329188530,1718165454413,-3233.555332,0.0001775,2]
[329188532,1718165454424,-1389.105788,0.0001775,2]
[329188534,1718165454434,-151.0,0.0001775,2]
[329188536,1718165454444,-1389.105788,0.0001775,2]
[329188538,1718165454455,-293.013129,0.0001775,2]
[329188540,1718165454465,-293.013129,0.0001775,2]
[329188542,1718165454476,-3372.33602,0.0001775,2]
[329188544,1718165454486,-3372.33602,0.0001775,2]
[329188546,1718165454497,-233.959898,0.0001775,2]
[329188548,1718165454507,-191.074939,0.0001775,2]
[329188550,1718165454517,-233.959898,0.0001775,2]
[329188552,1718165454528,-191.074939,0.0001775,2]
[329188554,1718165454540,-151.0,0.0001775,2]
[329188556,1718165454550,-151.0,0.0001775,2]
[329188558,1718165454563,-500.0,0.0001775,2]
[329188560,1718165454573,-519.26190512,0.0001775,2]
[329188562,1718165454584,-500.0,0.0001775,2]
[329188564,1718165454595,-500.0,0.0001775,2]
[329188566,1718165454605,-5591.59,0.0001775,2]
[329188568,1718165454616,-5591.59,0.0001775,2]
[329188570,1718165454626,-5591.59,0.0001775,2]
[329188572,1718165454638,-500.0,0.0001775,2]
[329188574,1718165454651,-684.31,0.0001775,2]
[329188576,1718165454661,-500.0,0.0001775,2]
[329188578,1718165454673,-295.260863,0.00017751,2]
[329188580,1718165454684,-295.260863,0.00017751,2]
[329188582,1718165454695,-151.0,0.00017751,2]
[329188584,1718165454705,-151.107121,0.00017751,2]
[329188586,1718165454719,-393.584432,0.00017751,2]
[329188588,1718165454729,-393.584432,0.00017751,2]
[329188590,1718165454740,-547.62787227,0.00017751,2]
[329188592,1718165454750,-500.0,0.00017751,2]
[329188594,1718165454760,-500.0,0.00017751,2]
[329188596,1718165454771,-502.12404934,0.00017751,2]
[329188598,1718165454781,-500.0,0.00017751,2]
[329188600,1718165454792,-500.0,0.00017751,2]
[329188602,1718165454802,-500.0,0.00017751,2]
[329188604,1718165454813,-500.0,0.00017751,2]
[329188606,1718165454824,-166.28567,0.00017751,2]
[329188609,1718165454838,-500.0,0.00017751,2]
[329188611,1718165454849,-166.28567,0.00017751,2]
[329188613,1718165454860,-500.0,0.00017751,2]
[329188614,1718165454870,-500.0,0.00017751,2]
[329188616,1718165454880,-500.0,0.00017751,2]
[329188618,1718165454891,-500.0,0.00017751,2]
[329188620,1718165454903,-500.0,0.00017751,2]
[329188622,1718165454914,-834.28,0.00017751,2]
[329188624,1718165454924,-500.0,0.00017751,2]
[329188626,1718165454934,-500.0,0.00017751,2]
[329188628,1718165454945,-500.0,0.00017751,2]
[329188630,1718165454955,-500.0,0.00017751,2]
[329188632,1718165454964,-500.0,0.00017751,2]
[329188634,1718165454976,-151.0,0.00017751,2]
[329188636,1718165454988,-151.0,0.00017751,2]
[329188638,1718165454998,-151.0,0.00017751,2]
[329188640,1718165455008,-594.31,0.00017751,2]
[329188642,1718165455019,-151.306482,0.00017751,2]
[329188644,1718165455029,-3490.49,0.00017751,2]
[329188646,1718165455040,-500.0,0.00017751,2]
[329188648,1718165455050,-338.27278372,0.00017751,2]
[329188650,1718165455061,-213.680644,0.00017751,2]
[329188652,1718165455071,-213.680644,0.00017751,2]
[329188654,1718165455081,-213.680644,0.00017751,2]
[329188656,1718165455092,-213.680644,0.00017751,2]
[329188658,1718165455102,-213.680644,0.00017751,2]
[329188660,1718165455112,-213.680644,0.00017751,2]
[329188662,1718165455122,-213.680644,0.00017751,2]
[329188664,1718165455132,-213.680644,0.00017751,2]
[329188665,1718165455143,-213.680644,0.00017751,2]
[329188666,1718165455155,-213.680644,0.00017751,2]
[329188667,1718165455166,-213.680644,0.00017751,2]
[329188668,1718165455185,-213.680644,0.00017751,2]
[329188669,1718165455196,-213.680644,0.00017751,2]
[329188670,1718165455205,-213.680644,0.00017751,2]
[329188671,1718165455216,-213.680644,0.00017751,2]
[329188672,1718165455226,-213.680642,0.00017751,2]
[329188673,1718165455236,-514.48605315,0.00017751,2]
[329188674,1718165455260,-183.395568,0.00017751,2]
[329188675,1718165455270,-183.395568,0.00017751,2]
[329188676,1718165455280,-183.395568,0.00017751,2]
[329188677,1718165455290,-183.395568,0.00017751,2]
[329188678,1718165455300,-183.395568,0.00017751,2]
[329188680,1718165455309,-183.395568,0.00017751,2]
[329188682,1718165455319,-183.395568,0.00017751,2]
[329188684,1718165455329,-183.395568,0.00017751,2]
[329188686,1718165455338,-500.0,0.00017751,2]
[329188688,1718165455348,-183.395568,0.00017751,2]
[329188690,1718165455358,-183.395568,0.00017751,2]
[329188692,1718165455368,-183.395568,0.00017751,2]
[329188694,1718165455379,-183.395568,0.00017751,2]
[329188696,1718165455389,-183.395568,0.00017751,2]
[329188698,1718165455400,-183.395568,0.00017751,2]
[329188700,1718165455413,-183.395568,0.00017751,2]
[329188702,1718165455423,-500.0,0.00017751,2]
[329188704,1718165455435,-183.39556,0.00017751,2]
[329188706,1718165455445,-500.0,0.00017751,2]
[329188708,1718165455455,-3233.555332,0.00017751,2]
[329188710,1718165455466,-3233.555332,0.00017751,2]
[329188712,1718165455479,-3233.555332,0.00017751,2]
[329188714,1718165455490,-3233.555332,0.00017751,2]
[329188715,1718165455500,-3233.555332,0.00017751,2]
[329188716,1718165455510,-3233.555332,0.00017751,2]
[329188717,1718165455519,-2677.77791851,0.00017751,2]
[329188718,1718165455675,-555.77741349,0.00017751,2]
[329188719,1718165455686,-3233.555332,0.00017751,2]
[329188720,1718165455696,-3233.555332,0.00017751,2]
[329188721,1718165455706,-3233.555332,0.00017751,2]
[329188722,1718165455716,-3233.555332,0.00017751,2]
[329188723,1718165455726,-3233.555332,0.00017751,2]
[329188724,1718165455736,-3233.555332,0.00017751,2]
[329188725,1718165455746,-3233.555332,0.00017751,2]
[329188726,1718165455756,-3233.555332,0.00017751,2]
[329188727,1718165455767,-3233.555333,0.00017751,2]
[329188728,1718165455777,-500.0,0.00017751,2]
[329188729,1718165455787,-500.0,0.00017751,2]
[329188730,1718165455798,-500.0,0.00017751,2]
[329188731,1718165455808,-500.0,0.00017751,2]
[329188732,1718165455818,-1389.105788,0.00017751,2]
[329188733,1718165455830,-1386.24443599,0.00017751,2]
[329188937,1718165491504,195.67422557,0.00017922,15]
[329188939,1718165822669,592.41,0.00010959,2]
[329188940,1718165846084,1984.3604423,9.999e-05,2]
[329188941,1718165862332,1501.89648863,9.999e-05,2]
[329188942,1718165896968,1343.59150643,9.999e-05,2]
[329188943,1718165910783,3111.60661556,9.999e-05,2]
[329188944,1718165911089,187.43861548,9.999e-05,2]
[329188945,1718165912105,372.85667187,9.999e-05,2]
[329188946,1718165935472,155.0356582,9.999e-05,2]
[329188947,1718165937541,686.61872356,9.999e-05,2]
[329188948,1718165944489,157.78541275,9.999e-05,2]
[329188949,1718165953732,19315.92802164,9.999e-05,2]
[329188950,1718165967091,155.0356582,9.999e-05,2]
[329188951,1718165969709,19355.10623438,9.999e-05,2]
[329188952,1718165970653,195.16599108,9.999e-05,2]
[329188953,1718165972472,838.45879666,9.999e-05,2]
[329188954,1718165978836,1282.43093422,9.999e-05,2]
[329188955,1718166030138,242.48718902,9.999e-05,2]
[329188956,1718166127919,262.16993722,9.999e-05,2]
[329188957,1718166239021,929.0489554,0.00013888,2]
[329188958,1718166269602,155.0356582,9.999e-05,2]
[329188959,1718166289818,1501.89648863,9.999e-05,2]
[329188960,1718166296034,182.08199844,9.999e-05,2]
[329188961,1718166300662,2513.5332157,0.00013811,2]
[329188962,1718166334876,451.79769573,9.999e-05,2]
[329188963,1718166372483,155.0356582,9.999e-05,2]
[329188964,1718166403767,157.78541275,9.999e-05,2]
[329188965,1718166416116,155.0356582,9.999e-05,2]
[329188966,1718166416620,686.61872356,9.999e-05,2]
[329188967,1718166429102,213.1030152,0.00013778,2]
[329188968,1718166432614,838.45879666,9.999e-05,2]
[329188980,1718166460903,1282.43093422,9.999e-05,2]
[329188981,1718166504572,24900.0,0.00013682,2]
[329188982,1718166621561,155.0356582,9.999e-05,2]
[329189014,1718166632696,200.48276874,9.999e-05,2]
[329189032,1718166632937,-1982.4555782,0.00014573,2]
[329189034,1718166632948,-2683.16682461,0.00014573,2]
[329189036,1718166632960,-155.10919426,0.00014574,2]
[329189038,1718166632971,-158.76299279,0.00014574,2]
[329189040,1718166632982,-155.11275086,0.00014574,2]
[329189042,1718166632993,-2642.54173153,0.00014574,2]
[329189044,1718166633007,-155.10508879,0.00014574,2]
[329189046,1718166633017,-419.21318354,0.00014574,2]
[329189047,1718166633027,-7921.82449081,0.00014574,2]
[329189048,1718166633039,-2037.59250395,0.00014575,2]
[329189050,1718166633051,-300.0,0.00014575,2]
[329189051,1718166633061,-300.0,0.00014575,2]
[329189052,1718166633071,-29885.1382623,0.00014575,2]
[329189575,1718166640668,-11101.9638547,0.00014572,2]
[329189577,1718166640680,-155.0356582,0.00014574,2]
[329189579,1718166640692,-12233.90437853,0.00014575,2]
[329189581,1718166640706,-59601.7655854,0.00014576,2]
[329189583,1718166640720,-2746.74299698,0.00014581,2]
[329189586,1718166640732,-1147.95980132,0.00014679,2]
[329189588,1718166640745,-2326.00510253,0.00014684,2]
[329189591,1718166640768,-786.31016931,0.00014774,2]
[329189594,1718166640787,-249.60851671,0.00014775,2]
[329189596,1718166640799,-687.34530958,0.00014775,2]
[329189598,1718166640810,-158.38043595,0.00014776,2]
[329189600,1718166640821,-159.25905056,0.00014778,2]
[329189601,1718166640833,-19674.24234394,0.0001478,2]
[329189604,1718166640844,-317.42037263,0.00014784,2]
[329189606,1718166640857,-1151.33872159,0.00014879,2]
[329189608,1718166640868,-181.43201854,0.00014879,2]
[329189610,1718166640879,-290.03886521,0.00014881,2]
[329189612,1718166640891,-302.46418436,0.00014881,2]
[329189614,1718166640904,-164.68563506,0.00014884,2]
[329189617,1718166640927,-163.81211065,0.00014892,2]
[329189619,1718166640937,-155.0356582,0.00015,2]
[329189621,1718166640950,-155.0356582,0.00015,2]
[329189623,1718166640964,-1691.76722693,0.00015,2]
[329189624,1718166640975,-2816.98595741,0.00015,2]
[329189625,1718166640985,-80000.0,0.00015,2]
[329189626,1718166641000,-1101.09253186,0.00015,2]
[329189627,1718166641013,-838.05381677,0.00015,2]
[329189628,1718166641024,-241.58394465,0.00015132,2]
[329189629,1718166641036,-155.1755601,0.00015132,2]
[329189630,1718166641048,-241.90319822,0.00015132,2]
[329189631,1718166641068,-221.52131129,0.00015132,2]
[329189632,1718166641080,-174.34822949,0.00015132,2]
[329189633,1718166641096,-510.32167406,0.00015133,2]
[329189634,1718166641108,-194.87772653,0.00015135,2]
[329189635,1718166641119,-270.63578484,0.00015135,2]
[329189636,1718166641130,-275.04499693,0.00015135,2]
[329189637,1718166641140,-1114.23146943,0.00015135,2]
[329189638,1718166641152,-2326.0051025,0.00015166,2]
[329189639,1718166641162,-489.4554539,0.000156,2]
[329189640,1718166641173,-2326.0051025,0.00015648,2]
[329189641,1718166641183,-420.0,0.00015958,2]
[329189642,1718166641193,-420.0,0.00016033,2]
[329189643,1718166641204,-2326.0051025,0.0001613,2]
[329189644,1718166641215,-2746.74299696,0.00016341,2]
[329189645,1718166641226,-187.6672104,0.00016432,2]
[329189646,1718166641237,-1880.00890579,0.00016432,2]
[329189647,1718166641247,-304.09011059,0.00016432,2]
[329189648,1718166641258,-3120.09651569,0.00016433,4]
[329189649,1718166641269,-204.85949657,0.00016435,2]
[329189650,1718166641279,-155.08822267,0.00016435,2]
[329189651,1718166641292,-927.63941968,0.00016435,2]
[329189652,1718166641304,-682.95095673,0.00016435,2]
[329189653,1718166641316,-309.80786049,0.00016435,2]
[329189654,1718166641327,-2411.36306232,0.00016435,2]
[329189655,1718166641338,-207.9459429,0.00016435,2]
[329189656,1718166641348,-1443.99211626,0.00016435,2]
[329189657,1718166641359,-195.36396274,0.00016435,2]
[329189658,1718166641370,-177.93024026,0.00016435,2]
[329189659,1718166641383,-1342.18256264,0.00016435,2]
[329189660,1718166641394,-301.11248756,0.00016435,2]
[329189661,1718166641404,-781.40420937,0.00016435,2]
[329189662,1718166641415,-10654.66518663,0.00016435,2]
[329189663,1718166641426,-298.58411979,0.00016435,2]
[329189664,1718166641436,-155.18308858,0.00016435,2]
[329189665,1718166641446,-306.94828385,0.00016435,2]
[329189666,1718166641459,-304.15251345,0.00016435,2]
[329189667,1718166641469,-164.40965034,0.00016435,2]
[329189668,1718166641480,-181.16978663,0.00016435,2]
[329189669,1718166641491,-219.1704812,0.00016435,2]
[329189670,1718166641501,-289.97449277,0.00016435,2]
[329189671,1718166641512,-174.58148265,0.00016435,2]
[329189672,1718166641523,-300.81572451,0.00016435,2]
[329189673,1718166641534,-225.89146376,0.00016435,2]
[329189674,1718166641544,-301.19708456,0.00016435,2]
[329189675,1718166641555,-183.06696409,0.00016435,2]
[329189676,1718166641566,-372.56639862,0.00016435,2]
[329189677,1718166641577,-180.67046992,0.00016435,2]
[329189678,1718166641591,-245.45468835,0.00016436,2]
[329189679,1718166641602,-155.19413393,0.00016436,2]
[329189680,1718166641612,-190.93521057,0.00016436,2]
[329189681,1718166641622,-231.37877712,0.00016436,2]
[329189682,1718166641654,-155.65872035,0.00016436,2]
[329189683,1718166641664,-1302.84031832,0.00016437,2]
[329189684,1718166641675,-350.82201875,0.00016438,2]
[329189685,1718166641686,-500.0,0.00016438,2]
[329189686,1718166641696,-500.0,0.00016438,2]
[329189687,1718166641707,-500.0,0.00016438,2]
[329189688,1718166641717,-501.74103468,0.00016438,2]
[329189689,1718166641728,-500.0,0.00016438,2]
[329189690,1718166641742,-500.0,0.00016438,2]
[329189691,1718166641751,-500.0,0.00016438,2]
[329189692,1718166641762,-500.0,0.00016438,2]
[329189693,1718166641772,-509.3825886,0.00016438,2]
[329189694,1718166641782,-500.0,0.00016438,2]
[329189695,1718166641792,-500.0,0.00016438,2]
[329189696,1718166641802,-503.36417828,0.00016438,2]
[329189697,1718166641812,-500.0,0.00016438,2]
[329189698,1718166641823,-500.0,0.00016438,2]
[329189699,1718166641836,-500.0,0.00016438,2]
[329189700,1718166641846,-507.09911084,0.00016438,2]
[329189701,1718166641857,-510.30905643,0.00016438,2]
[329189702,1718166641868,-500.0,0.00016438,2]
[329189703,1718166641878,-500.0,0.00016438,2]
[329189704,1718166641889,-450.24372524,0.00016438,2]
[329189705,1718166641900,-500.0,0.00016438,2]
[329189706,1718166641910,-500.0,0.00016438,2]
[329189707,1718166641920,-501.65685285,0.00016438,2]
[329189708,1718166641932,-500.0,0.00016438,2]
[329189709,1718166641942,-276.32272919,0.00016438,2]
[329189710,1718166641953,-501.52015893,0.00016438,2]
[329189711,1718166641963,-151.470938,0.00016438,2]
[329189712,1718166641975,-500.0,0.00016438,2]
[329189713,1718166641986,-523.32061124,0.00016438,2]
[329189714,1718166641997,-500.36327751,0.00016438,2]
[329189715,1718166642007,-799.52,0.00016438,2]
[329189716,1718166642019,-799.52,0.00016438,2]
[329189717,1718166642031,-799.52,0.00016438,2]
[329189718,1718166642042,-151.0,0.00016438,2]
[329189719,1718166642053,-799.52,0.00016438,2]
[329189720,1718166642063,-799.52,0.00016438,2]
[329189721,1718166642074,-505.8504904,0.00016438,2]
[329189722,1718166642084,-500.0,0.00016438,2]
[329189723,1718166642095,-500.0,0.00016438,2]
[329189724,1718166642105,-501.31958784,0.00016438,2]
[329189725,1718166642117,-151.0,0.00016438,2]
[329189726,1718166642128,-500.0,0.00016438,2]
[329189727,1718166642138,-500.0,0.00016438,2]
[329189728,1718166642151,-242.249899,0.00016438,2]
[329189729,1718166642161,-500.0,0.00016438,2]
[329189730,1718166642171,-501.90395511,0.00016438,2]
[329189731,1718166642183,-500.0,0.00016438,2]
[329189732,1718166642194,-500.0,0.00016438,2]
[329189733,1718166642204,-242.249899,0.00016438,2]
[329189734,1718166642215,-501.46359089,0.00016438,2]
[329189735,1718166642225,-500.0,0.00016438,2]
[329189736,1718166642236,-503.1444164,0.00016438,2]
[329189737,1718166642247,-151.0,0.00016438,2]
[329189738,1718166642258,-538.81461973,0.00016438,2]
[329189739,1718166642269,-500.0,0.00016438,2]
[329189740,1718166642279,-500.0,0.00016438,2]
[329189741,1718166642289,-151.0,0.00016438,2]
[329189742,1718166642299,-500.0,0.00016438,2]
[329189743,1718166642310,-500.0,0.00016438,2]
[329189744,1718166642321,-500.0,0.00016438,2]
[329189745,1718166642332,-500.0,0.00016438,2]
[329189746,1718166642342,-500.0,0.00016438,2]
[329189747,1718166642353,-500.0,0.00016438,2]
[329189748,1718166642367,-569.55,0.00016438,2]
[329189749,1718166642379,-500.0,0.00016438,2]
[329189751,1718166642390,-500.0,0.00016438,2]
[329189753,1718166642400,-500.0,0.00016438,2]
[329189755,1718166642412,-3345.06,0.00016438,2]
[329189756,1718166642423,-500.0,0.00016438,2]
[329189757,1718166642434,-500.0,0.00016438,2]
[329189758,1718166642445,-500.0,0.00016438,2]
[329189759,1718166642457,-500.0,0.00016438,2]
[329189761,1718166642468,-500.0,0.00016438,2]
[329189763,1718166642479,-500.0,0.00016438,2]
[329189765,1718166642490,-500.0,0.00016438,2]
[329189767,1718166642501,-500.0,0.00016438,2]
[329189768,1718166642511,-500.0,0.00016438,2]
[329189770,1718166642523,-500.0,0.00016438,2]
[329189772,1718166642534,-500.0,0.00016438,2]
[329189774,1718166642547,-500.0,0.00016438,2]
[329189775,1718166642557,-500.0,0.00016438,2]
[329189777,1718166642569,-500.0,0.00016438,2]
[329189779,1718166642580,-544.21504994,0.00016438,2]
[329189781,1718166642593,-500.46832935,0.00016438,2]
[329189783,1718166642604,-151.0,0.00016438,2]
[329189785,1718166642615,-500.0,0.00016438,2]
[329189787,1718166642634,-500.0,0.00016438,2]
[329189789,1718166642659,-500.0,0.00016438,2]
[329189790,1718166642670,-500.0,0.00016438,2]
[329189791,1718166642681,-500.0,0.00016438,2]
[329189792,1718166642693,-543.46180541,0.00016438,2]
[329189793,1718166642704,-500.0,0.00016438,2]
[329189794,1718166642715,-500.0,0.00016438,2]
[329189795,1718166642727,-500.0,0.00016438,2]
[329189796,1718166642737,-500.0,0.00016438,2]
[329189797,1718166642747,-186.421928,0.00016438,2]
[329189798,1718166642760,-500.0,0.00016438,2]
[329189799,1718166642770,-500.0,0.00016438,2]
[329189800,1718166642781,-186.421928,0.00016438,2]
[329189801,1718166642792,-500.0,0.00016438,2]
[329189802,1718166642803,-500.0,0.00016438,2]
[329189803,1718166642814,-500.0,0.00016438,2]
[329189804,1718166642824,-500.0,0.00016438,2]
[329189805,1718166642836,-585.41494681,0.00016438,2]
[329189806,1718166642847,-216.40696421,0.00016438,2]
[329189807,1718166642857,-500.0,0.00016438,2]
[329189808,1718166642868,-500.0,0.00016438,2]
[329189809,1718166642879,-500.0,0.00016438,2]
[329189810,1718166642891,-500.0,0.00016438,2]
[329189811,1718166642901,-502.42493305,0.00016438,2]
[329189812,1718166642913,-500.0,0.00016438,2]
[329189813,1718166642924,-506.37829844,0.00016438,2]
[329189814,1718166642934,-500.0,0.00016438,2]
[329189815,1718166642946,-500.0,0.00016438,2]
[329189816,1718166642959,-595.76374772,0.00016438,2]
[329189817,1718166642972,-500.0,0.00016438,2]
[329189818,1718166642995,-500.0,0.00016438,2]
[329189819,1718166643006,-500.0,0.00016438,2]
[329189820,1718166643023,-502.2197902,0.00016438,2]
[329189821,1718166643040,-501.60268197,0.00016438,2]
[329189824,1718166643066,-489.67867836,0.00016438,2]
[329189826,1718166643080,-500.0,0.00016438,2]
[329189828,1718166643098,-500.0,0.00016438,2]
[329189830,1718166643110,-500.0,0.00016438,2]
[329189832,1718166643123,-627.44525498,0.00016438,2]
[329189834,1718166643136,-500.0,0.00016438,2]
[329189836,1718166643148,-627.28,0.00016438,2]
[329189837,1718166643162,-627.28,0.00016438,2]
[329189838,1718166643175,-500.0,0.00016438,2]
[329189839,1718166643185,-500.0,0.00016438,2]
[329189840,1718166643196,-500.0,0.00016438,2]
[329189841,1718166643207,-501.14589014,0.00016438,2]
[329189842,1718166643218,-500.0,0.00016438,2]
[329189843,1718166643229,-500.0,0.00016438,2]
[329189845,1718166643239,-500.0,0.00016438,2]
[329189847,1718166643250,-500.0,0.00016438,2]
[329189849,1718166643261,-151.0,0.00016438,2]
[329189851,1718166643271,-166.383066,0.00016438,2]
[329189853,1718166643282,-151.0,0.00016438,2]
[329189855,1718166643293,-500.0,0.00016438,2]
[329189857,1718166643303,-500.0,0.00016438,2]
[329189859,1718166643314,-501.57776045,0.00016438,2]
[329189861,1718166643329,-500.0,0.00016438,2]
[329189863,1718166643342,-500.27021647,0.00016438,2]
[329189865,1718166643355,-500.0,0.00016438,2]
[329189867,1718166643370,-500.0,0.00016438,2]
[329189869,1718166643384,-570.88117633,0.00016438,2]
[329189871,1718166643396,-500.0,0.00016438,2]
[329189873,1718166643407,-500.0,0.00016438,2]
[329189876,1718166643419,-500.0,0.00016438,2]
[329189877,1718166643429,-500.0,0.00016438,2]
[329189880,1718166643440,-773.49,0.00016438,2]
[329189881,1718166643453,-500.0,0.00016438,2]
[329189884,1718166643463,-235.30919,0.00016438,2]
[329189885,1718166643475,-235.30919,0.00016438,2]
[329189888,1718166643485,-235.30919,0.00016438,2]
[329189890,1718166643497,-500.0,0.00016438,2]
[329189892,1718166643507,-500.0,0.00016438,2]
[329189894,1718166643518,-500.0,0.00016438,2]
[329189896,1718166643528,-235.30919,0.00016438,2]
[329189898,1718166643540,-235.30919,0.00016438,2]
[329189900,1718166643550,-235.30919,0.00016438,2]
[329189902,1718166643561,-500.0,0.00016438,2]
[329189904,1718166643573,-1263.66,0.00016438,2]
[329189906,1718166643588,-236.5197406,0.00016438,2]
[329189908,1718166643599,-500.0,0.00016438,2]
[329189910,1718166643611,-500.0,0.00016438,2]
[329189922,1718166643778,-500.0,0.00016438,2]
[329189924,1718166643789,-500.0,0.00016438,2]
[329189926,1718166643801,-500.0,0.00016438,2]
[329189928,1718166643811,-500.0,0.00016438,2]
[329189930,1718166643822,-500.0,0.00016438,2]
[329189932,1718166643833,-505.51142548,0.00016438,2]
[329189934,1718166643843,-502.25197149,0.00016438,2]
[329189936,1718166643855,-500.0,0.00016438,2]
[329189938,1718166643867,-500.0,0.00016438,2]
[329189940,1718166643878,-500.0,0.00016438,2]
[329189942,1718166643889,-500.0,0.00016438,2]
[329189944,1718166643900,-500.0,0.00016438,2]
[329189946,1718166643911,-500.0,0.00016438,2]
[329189948,1718166643922,-500.0,0.00016438,2]
[329189950,1718166643933,-500.0,0.00016438,2]
[329189952,1718166643945,-500.0,0.00016438,2]
[329189954,1718166643956,-318.55246722,0.00016438,2]
[329189956,1718166643969,-500.0,0.00016438,2]
[329189958,1718166643980,-500.0,0.00016438,2]
[329189960,1718166643997,-505.40509332,0.00016438,2]
[329189962,1718166644008,-500.0,0.00016438,2]
[329189964,1718166644019,-500.0,0.00016438,2]
[329189966,1718166644032,-500.0,0.00016438,2]
[329189968,1718166644044,-500.0,0.00016438,2]
[329189970,1718166644056,-500.0,0.00016438,2]
[329189972,1718166644067,-503.97175668,0.00016438,2]
[329189974,1718166644079,-500.0,0.00016438,2]
[329189976,1718166644091,-500.0,0.00016438,2]
[329189978,1718166644102,-500.0,0.00016438,2]
[329189980,1718166644113,-500.0,0.00016438,2]
[329189982,1718166644124,-500.0,0.00016438,2]
[329189984,1718166644136,-528.24046613,0.00016438,2]
[329189986,1718166644148,-502.32206818,0.00016438,2]
[329189988,1718166644160,-500.0,0.00016438,2]
[329189990,1718166644173,-500.0,0.00016438,2]
[329189993,1718166644190,-500.0,0.00016438,2]
[329189994,1718166644205,-500.0,0.00016438,2]
[329189996,1718166644219,-500.0,0.00016438,2]
[329189998,1718166644231,-500.0,0.00016438,2]
[329190000,1718166644242,-500.0,0.00016438,2]
[329190002,1718166644252,-500.0,0.00016438,2]
[329190004,1718166644263,-500.0,0.00016438,2]
[329190007,1718166644277,-151.0,0.00016438,2]
[329190008,1718166644288,-151.0,0.00016438,2]
[329190010,1718166644299,-500.0,0.00016438,2]
[329190012,1718166644310,-500.0,0.00016438,2]
[329190015,1718166644322,-151.0,0.00016438,2]